fUST/lending_fUST_20240730
["ID","MTS","AMOUNT","RATE_DAILY","PERIOD"]
[333684916,1722351051971,-500.0,0.00013972,2]
[333684917,1722351051980,-500.0,0.00013972,2]
[333684918,1722351051990,-500.0,0.00013972,2]
[333684919,1722351051999,-500.0,0.00013972,2]
[333684920,1722351052010,-500.0,0.00013972,2]
[333684921,1722351052020,-269.59526329,0.00013972,2]
[333684922,1722351052030,-500.0,0.00013972,2]
[333684923,1722351052040,-500.0,0.00013972,2]
[333684924,1722351052050,-500.0,0.00013972,2]
[333684925,1722351052060,-500.0,0.00013972,2]
[333684926,1722351052072,-500.0,0.00013972,2]
[333684927,1722351052082,-500.0,0.00013972,2]
[333684928,1722351052092,-500.0,0.00013972,2]
[333684929,1722351052101,-500.0,0.00013972,2]
[333684930,1722351052111,-508.92556124,0.00013972,2]
[333684931,1722351052121,-500.0,0.00013972,2]
[333684932,1722351052131,-504.54525538,0.00013972,2]
[333684933,1722351052142,-500.0,0.00013972,2]
[333684934,1722351052154,-500.0,0.00013972,2]
[333684935,1722351052165,-506.2126841,0.00013972,2]
[333684936,1722351052175,-504.70838598,0.00013972,2]
[333684937,1722351052184,-500.0,0.00013972,2]
[333684938,1722351052194,-504.50288948,0.00013972,2]
[333684939,1722351052205,-1683.53,0.00013972,2]
[333684940,1722351052215,-500.0,0.00013972,2]
[333684941,1722351052224,-500.0,0.00013972,2]
[333684942,1722351052234,-512.15803606,0.00013972,2]
[333684943,1722351052244,-500.0,0.00013972,2]
[333684944,1722351052255,-500.0,0.00013972,2]
[333684945,1722351052265,-280.91386986,0.00013972,2]
[333684946,1722351052274,-505.15030162,0.00013972,2]
[333684947,1722351052284,-194.29,0.00013972,2]
[333684948,1722351052294,-500.0,0.00013972,2]
[333684949,1722351052303,-582.92,0.00013972,2]
[333684950,1722351052314,-500.0,0.00013972,2]
[333684951,1722351052324,-500.0,0.00013972,2]
[333684952,1722351052333,-500.0,0.00013972,2]
[333684953,1722351052343,-500.0,0.00013972,2]
[333684954,1722351052353,-500.0,0.00013972,2]
[333684955,1722351052363,-500.0,0.00013972,2]
[333684956,1722351052373,-500.0,0.00013972,2]
[333684957,1722351052383,-500.0,0.00013972,2]
[333684958,1722351052393,-500.0,0.00013972,2]
[333684959,1722351052403,-500.0,0.00013972,2]
[333684960,1722351052414,-500.0,0.00013972,2]
[333684961,1722351052423,-500.0,0.00013972,2]
[333684962,1722351052434,-537.79,0.00013972,2]
[333684963,1722351052444,-1208.34,0.00013972,2]
[333684964,1722351052453,-500.0,0.00013972,2]
[333684965,1722351052463,-500.0,0.00013972,2]
[333684966,1722351052473,-500.0,0.00013972,2]
[333684967,1722351052483,-500.0,0.00013972,2]
[333684968,1722351052493,-500.0,0.00013972,2]
[333684969,1722351052503,-528.97781954,0.00013972,2]
[333684970,1722351052513,-500.0,0.00013972,2]
[333684971,1722351052522,-500.0,0.00013972,2]
[333684972,1722351052532,-500.0,0.00013972,2]
[333684973,1722351052542,-500.0,0.00013972,2]
[333684974,1722351052552,-500.0,0.00013972,2]
[333684975,1722351052562,-500.0,0.00013972,2]
[333684976,1722351052574,-500.0,0.00013972,2]
[333684977,1722351052585,-500.0,0.00013972,2]
[333684978,1722351052595,-500.0,0.00013972,2]
[333684979,1722351052605,-500.0,0.00013972,2]
[333684980,1722351052616,-500.0,0.00013972,2]
[333684981,1722351052626,-500.0,0.00013972,2]
[333684982,1722351052636,-504.31399478,0.00013972,2]
[333684983,1722351052646,-500.0,0.00013972,2]
[333684984,1722351052656,-500.0,0.00013972,2]
[333684985,1722351052665,-500.0,0.00013972,2]
[333684986,1722351052675,-500.0,0.00013972,2]
[333684987,1722351052685,-508.06723166,0.00013972,2]
[333684988,1722351052695,-500.0,0.00013972,2]
[333684989,1722351052705,-500.0,0.00013972,2]
[333684990,1722351052715,-401.41,0.00013972,2]
[333684991,1722351052725,-500.0,0.00013972,2]
[333684992,1722351052735,-500.0,0.00013972,2]
[333684993,1722351052745,-500.0,0.00013972,2]
[333684994,1722351052756,-500.0,0.00013972,2]
[333684995,1722351052766,-500.0,0.00013972,2]
[333684996,1722351052777,-500.0,0.00013972,2]
[333684997,1722351052787,-571.31,0.00013972,2]
[333684998,1722351052797,-500.0,0.00013972,2]
[333684999,1722351052807,-500.0,0.00013972,2]
[333685000,1722351052818,-500.0,0.00013972,2]
[333685001,1722351052827,-500.0,0.00013972,2]
[333685002,1722351052838,-500.0,0.00013972,2]
[333685003,1722351052847,-500.0,0.00013972,2]
[333685004,1722351052858,-500.0,0.00013972,2]
[333685005,1722351052868,-500.0,0.00013972,2]
[333685006,1722351052878,-519.42702461,0.00013972,2]
[333685007,1722351052891,-502.47383564,0.00013972,2]
[333685008,1722351052901,-500.0,0.00013972,2]
[333685009,1722351052911,-500.0,0.00013972,2]
[333685010,1722351052923,-500.0,0.00013972,2]
[333685011,1722351052932,-477.51,0.00013972,2]
[333685012,1722351052942,-500.0,0.00013972,2]
[333685013,1722351052952,-506.65289107,0.00013972,2]
[333685014,1722351052964,-569.8,0.00013972,2]
[333685015,1722351052975,-599.59,0.00013972,2]
[333685016,1722351052985,-500.0,0.00013972,2]
[333685017,1722351052996,-505.83399773,0.00013972,2]
[333685018,1722351053006,-500.0,0.00013972,2]
[333685019,1722351053017,-500.0,0.00013972,2]
[333685020,1722351053027,-500.0,0.00013972,2]
[333685021,1722351053037,-500.0,0.00013972,2]
[333685022,1722351053048,-417.11458571,0.00013972,2]
[333685023,1722351053062,-525.47971214,0.00013972,2]
[333685024,1722351053076,-500.0,0.00013972,2]
[333685025,1722351053090,-507.56723377,0.00013972,2]
[333685026,1722351053103,-500.0,0.00013972,2]
[333685027,1722351053116,-500.0,0.00013972,2]
[333685028,1722351053126,-500.0,0.00013972,2]
[333685029,1722351053137,-503.75673307,0.00013972,2]
[333685030,1722351053149,-500.0,0.00013972,2]
[333685031,1722351053161,-500.0,0.00013972,2]
[333685032,1722351053173,-500.0,0.00013972,2]
[333685033,1722351053185,-500.0,0.00013972,2]
[333685034,1722351053198,-506.94553374,0.00013972,2]
[333685035,1722351053210,-500.0,0.00013972,2]
[333685036,1722351053222,-500.0,0.00013972,2]
[333685037,1722351053234,-500.0,0.00013972,2]
[333685038,1722351053247,-150.39464237,0.00013972,2]
[333685039,1722351053260,-500.0,0.00013972,2]
[333685040,1722351053273,-500.0,0.00013972,2]
[333685041,1722351053284,-500.0,0.00013972,2]
[333685042,1722351053296,-500.0,0.00013972,2]
[333685043,1722351053308,-500.0,0.00013972,2]
[333685044,1722351053326,-500.0,0.00013972,2]
[333685045,1722351053338,-500.0,0.00013972,2]
[333685046,1722351053350,-500.0,0.00013972,2]
[333685047,1722351053362,-500.0,0.00013972,2]
[333685048,1722351053372,-237.24241707,0.00013972,2]
[333685049,1722351053383,-500.0,0.00013972,2]
[333685050,1722351053394,-626.13,0.00013972,2]
[333685051,1722351053406,-520.83,0.00013972,2]
[333685052,1722351053417,-500.0,0.00013972,2]
[333685053,1722351053429,-500.0,0.00013972,2]
[333685054,1722351053441,-500.0,0.00013972,2]
[333685055,1722351053454,-500.0,0.00013972,2]
[333685056,1722351053466,-500.0,0.00013972,2]
[333685057,1722351053478,-500.0,0.00013972,2]
[333685058,1722351053491,-500.0,0.00013972,2]
[333685059,1722351053505,-500.0,0.00013972,2]
[333685060,1722351053517,-500.0,0.00013972,2]
[333685061,1722351053527,-500.0,0.00013972,2]
[333685062,1722351053538,-509.01525306,0.00013972,2]
[333685063,1722351053548,-500.0,0.00013972,2]
[333685064,1722351053558,-625.11457564,0.00013972,2]
[333685065,1722351053571,-500.0,0.00013972,2]
[333685066,1722351053583,-505.71006865,0.00013972,2]
[333685067,1722351053596,-642.39616242,0.00013972,2]
[333685068,1722351053609,-500.0,0.00013972,2]
[333685069,1722351053620,-500.0,0.00013972,2]
[333685070,1722351053630,-506.22815648,0.00013972,2]
[333685071,1722351053643,-503.95349752,0.00013972,2]
[333685072,1722351053654,-500.0,0.00013972,2]
[333685073,1722351053666,-501.85469413,0.00013972,2]
[333685074,1722351053680,-500.0,0.00013972,2]
[333685075,1722351053691,-500.0,0.00013972,2]
[333685076,1722351053702,-519.92,0.00013972,2]
[333685077,1722351053712,-442.66956567,0.00013972,2]
[333685078,1722351053723,-500.0,0.00013972,2]
[333685079,1722351053735,-500.0,0.00013972,2]
[333685080,1722351053747,-500.0,0.00013972,2]
[333685081,1722351053759,-500.0,0.00013972,2]
[333685082,1722351053771,-500.0,0.00013972,2]
[333685083,1722351053782,-500.0,0.00013972,2]
[333685084,1722351053792,-500.0,0.00013972,2]
[333685085,1722351053803,-500.0,0.00013972,2]
[333685086,1722351053814,-500.0,0.00013972,2]
[333685087,1722351053827,-524.19675787,0.00013972,2]
[333685088,1722351053839,-500.0,0.00013972,2]
[333685089,1722351053850,-552.89,0.00013972,2]
[333685090,1722351053860,-500.0,0.00013972,2]
[333685091,1722351053872,-504.79816848,0.00013972,2]
[333685092,1722351053885,-500.0,0.00013972,2]
[333685093,1722351053896,-500.0,0.00013972,2]
[333685094,1722351053907,-500.0,0.00013972,2]
[333685095,1722351053919,-504.29558089,0.00013972,2]
[333685096,1722351053931,-151.0,0.00013972,2]
[333685097,1722351053944,-564.41,0.00013972,2]
[333685098,1722351053956,-500.0,0.00013972,2]
[333685099,1722351053967,-500.0,0.00013972,2]
[333685100,1722351053979,-500.0,0.00013972,2]
[333685101,1722351053990,-500.0,0.00013972,2]
[333685102,1722351054001,-216.51,0.00013972,2]
[333685103,1722351054012,-264.35422318,0.00013972,2]
[333685104,1722351054023,-151.437443,0.00013972,2]
[333685105,1722351054033,-500.0,0.00013972,2]
[333685106,1722351054044,-151.0,0.00013972,2]
[333685107,1722351054057,-500.0,0.00013972,2]
[333685108,1722351054071,-398.447349,0.00013972,2]
[333685109,1722351054081,-398.447349,0.00013972,2]
[333685110,1722351054092,-500.0,0.00013972,2]
[333685111,1722351054103,-500.0,0.00013972,2]
[333685112,1722351054114,-500.0,0.00013972,2]
[333685113,1722351054126,-430.096414,0.00013972,2]
[333685114,1722351054138,-500.0,0.00013972,2]
[333685115,1722351054149,-151.0,0.00013972,2]
[333685116,1722351054162,-430.096414,0.00013972,2]
[333685117,1722351054173,-151.0,0.00013972,2]
[333685118,1722351054186,-151.0,0.00013972,2]
[333685119,1722351054197,-151.0,0.00013972,2]
[333685120,1722351054208,-500.0,0.00013972,2]
[333685121,1722351054219,-151.0,0.00013972,2]
[333685122,1722351054230,-1012.660658,0.00013972,2]
[333685123,1722351054241,-1012.660658,0.00013972,2]
[333685124,1722351054251,-500.0,0.00013972,2]
[333685125,1722351054262,-500.0,0.00013972,2]
[333685126,1722351054274,-372.838423,0.00013972,2]
[333685127,1722351054284,-500.0,0.00013972,2]
[333685128,1722351054295,-372.838423,0.00013972,2]
[333685129,1722351054308,-232.07271812,0.00013972,2]
[333685130,1722351054325,-410.269436,0.00013972,2]
[333685131,1722351054336,-410.269436,0.00013972,2]
[333685132,1722351054350,-500.0,0.00013972,2]
[333685133,1722351054361,-151.0,0.00013972,2]
[333685134,1722351054372,-500.0,0.00013972,2]
[333685135,1722351054384,-500.0,0.00013972,2]
[333685136,1722351054395,-504.96702403,0.00013972,2]
[333685137,1722351054406,-500.0,0.00013972,2]
[333685138,1722351054417,-510.43,0.00013972,2]
[333685139,1722351054429,-500.0,0.00013972,2]
[333685140,1722351054441,-500.0,0.00013972,2]
[333685141,1722351054452,-500.0,0.00013972,2]
[333685142,1722351054463,-457.403593,0.00013972,2]
[333685143,1722351054473,-457.403593,0.00013972,2]
[333685144,1722351054484,-500.0,0.00013972,2]
[333685145,1722351054495,-2058.772207,0.00013972,2]
[333685146,1722351054506,-2058.772207,0.00013972,2]
[333685147,1722351054517,-151.0,0.00013972,2]
[333685148,1722351054527,-500.0,0.00013972,2]
[333685149,1722351054538,-151.0,0.00013972,2]
[333685150,1722351054548,-500.0,0.00013972,2]
[333685151,1722351054559,-151.0,0.00013972,2]
[333685152,1722351054571,-500.0,0.00013972,2]
[333685153,1722351054582,-500.0,0.00013972,2]
[333685154,1722351054594,-151.409288,0.00013972,2]
[333685155,1722351054604,-212.08628186,0.00013972,2]
[333685156,1722351054615,-151.0,0.00013972,2]
[333685157,1722351054626,-500.0,0.00013972,2]
[333685158,1722351054637,-286.59,0.00013972,2]
[333685159,1722351054648,-182.551262,0.00013972,2]
[333685160,1722351054659,-208.649657,0.00013972,2]
[333685161,1722351054670,-500.0,0.00013972,2]
[333685162,1722351054681,-500.0,0.00013972,2]
[333685163,1722351054692,-208.649657,0.00013972,2]
[333685164,1722351054703,-182.551262,0.00013972,2]
[333685165,1722351054714,-151.0,0.00013972,2]
[333685166,1722351054726,-151.0,0.00013972,2]
[333685167,1722351054737,-500.0,0.00013972,2]
[333685168,1722351054748,-151.0,0.00013972,2]
[333685169,1722351054759,-271.268545,0.00013982,2]
[333685170,1722351054771,-151.0,0.00013982,2]
[333685171,1722351054782,-271.268545,0.00013982,2]
[333685172,1722351054793,-1000.0,0.00013984,2]
[333685173,1722351054804,-10000.0,0.0001399,2]
[333685174,1722351054815,-201.069743,0.0001399,2]
[333685175,1722351054829,-201.069743,0.0001399,2]
[333685176,1722351054840,-376.230484,0.0001399,2]
[333685177,1722351054852,-376.230484,0.0001399,2]
[333685178,1722351054863,-151.0,0.0001399,2]
[333685179,1722351054876,-151.0,0.0001399,2]
[333685180,1722351054888,-12631.70918501,0.00013999,5]
[333685181,1722351054899,-5000.0,0.00013999,2]
[333685182,1722351054911,-151.0,0.00013999,2]
[333685183,1722351054921,-151.0,0.00013999,2]
[333685184,1722351054931,-1000.0,0.00014005,2]
[333685185,1722351054942,-1000.0,0.00014013,2]
[333685186,1722351054955,-1000.0,0.00014016,2]
[333685187,1722351054966,-1000.0,0.00014023,2]
[333685188,1722351054977,-1000.0,0.00014029,2]
[333685189,1722351054988,-1000.0,0.00014031,2]
[333685190,1722351054999,-1000.0,0.00014032,2]
[333685191,1722351055011,-1000.0,0.00014041,2]
[333685192,1722351055024,-173.0,0.0001405,2]
[333685193,1722351055037,-1000.0,0.00014056,2]
[333685194,1722351055049,-1000.0,0.00014061,2]
[333685195,1722351055060,-300.0,0.00014064,2]
[333685196,1722351055074,-1000.0,0.00014065,2]
[333685197,1722351055084,-300.0,0.00014071,2]
[333685198,1722351055094,-1000.0,0.00014081,2]
[333685199,1722351055105,-1000.0,0.00014082,2]
[333685200,1722351055115,-1000.0,0.00014087,2]
[333685201,1722351055126,-1086.52361962,0.0001409,2]
[333685202,1722351055136,-300.0,0.00014091,2]
[333685203,1722351055147,-299.790877,0.00014095,2]
[333685204,1722351055159,-216.503997,0.00014095,2]
[333685205,1722351055171,-1000.0,0.00014105,2]
[333685206,1722351055182,-1000.0,0.00014115,2]
[333685207,1722351055193,-1000.0,0.00014116,2]
[333685208,1722351055203,-1000.0,0.00014116,2]
[333685209,1722351055215,-1000.0,0.00014121,2]
[333685210,1722351055226,-151.0,0.00014123,2]
[333685211,1722351055236,-151.0,0.00014123,2]
[333685212,1722351055246,-151.0,0.00014123,2]
[333685213,1722351055258,-151.0,0.00014123,2]
[333685214,1722351055268,-1000.0,0.00014135,2]
[333685215,1722351055279,-1000.0,0.00014135,2]
[333685216,1722351055529,-1000.0,0.00014136,2]
[333685217,1722351055552,-1000.0,0.00014136,2]
[333685218,1722351055565,-1000.0,0.00014138,2]
[333685219,1722351055577,-1000.0,0.00014149,2]
[333685220,1722351055587,-300.0,0.0001415,2]
[333685221,1722351055597,-1000.0,0.00014158,2]
[333685222,1722351055606,-1000.0,0.00014158,2]
[333685223,1722351055616,-151.0,0.00014163,2]
[333685224,1722351055626,-1000.0,0.00014173,2]
[333685225,1722351055635,-1000.0,0.00014177,2]
[333685226,1722351055645,-1000.0,0.00014179,2]
[333685227,1722351055656,-1000.0,0.0001419,2]
[333685228,1722351055666,-300.0,0.00014196,2]
[333685229,1722351055676,-620.00009019,0.00014204,2]
[333685230,1722351055685,-300.0,0.00014209,2]
[333685231,1722351055696,-1000.0,0.0001421,2]
[333685232,1722351055705,-1000.0,0.00014214,2]
[333685233,1722351055715,-1000.0,0.00014214,2]
[333685234,1722351055725,-300.0,0.00014216,2]
[333685235,1722351055735,-2000.0,0.0001422,2]
[333685236,1722351055745,-2000.0,0.00014228,2]
[333685237,1722351055754,-151.0,0.00014237,2]
[333685238,1722351055764,-2000.0,0.00014237,2]
[333685239,1722351055773,-2000.0,0.00014237,2]
[333685240,1722351055784,-6553.49,0.00014246,2]
[333685241,1722351055794,-500.0,0.00014246,2]
[333685242,1722351055804,-500.0,0.00014246,2]
[333685243,1722351055814,-5296.11,0.00014246,2]
[333685244,1722351055826,-550.34,0.00014246,2]
[333685245,1722351055836,-1244.51,0.00014246,2]
[333685246,1722351055845,-3380.92,0.00014246,2]
[333685247,1722351055855,-500.0,0.00014246,2]
[333685248,1722351055865,-440.01,0.00014246,2]
[333685249,1722351055876,-333.33,0.00014246,2]
[333685250,1722351055886,-500.0,0.00014246,2]
[333685251,1722351055896,-500.0,0.00014246,2]
[333685252,1722351055905,-171.99181807,0.00014246,2]
[333685253,1722351056167,-290.87818193,0.00014246,2]
[333685254,1722351056178,-613.63,0.00014246,2]
[333685255,1722351056187,-500.0,0.00014246,2]
[333685256,1722351056197,-500.0,0.00014246,2]
[333685257,1722351056207,-500.0,0.00014246,2]
[333685258,1722351056217,-500.0,0.00014246,2]
[333685259,1722351056227,-500.0,0.00014246,2]
[333685260,1722351056236,-492.59,0.00014246,2]
[333685261,1722351056246,-500.0,0.00014246,2]
[333685262,1722351056256,-500.0,0.00014246,2]
[333685263,1722351056265,-500.0,0.00014246,2]
[333685264,1722351056275,-500.0,0.00014246,2]
[333685265,1722351056284,-500.0,0.00014246,2]
[333685266,1722351056294,-481.52,0.00014246,2]
[333685267,1722351056303,-500.0,0.00014246,2]
[333685268,1722351056313,-257.79,0.00014246,2]
[333685269,1722351056324,-500.0,0.00014246,2]
[333685270,1722351056334,-500.0,0.00014246,2]
[333685271,1722351056343,-500.0,0.00014246,2]
[333685272,1722351056353,-116.89181807,0.00014246,2]
[333685273,1722351056477,-19.75891164,0.00014246,2]
[333685274,1722351056540,-167.32927029,0.00014246,2]
[333685275,1722351056551,-406.3527236,0.00014246,2]
[333685276,1722351056563,-93.6472764,0.00014246,2]
[333685277,1722351056574,-432.43,0.00014246,2]
[333685278,1722351056584,-364.74,0.00014246,2]
[333685279,1722351056594,-500.0,0.00014246,2]
[333685280,1722351056604,-500.0,0.00014246,2]
[333685281,1722351056613,-641.96,0.00014246,2]
[333685282,1722351056623,-500.0,0.00014246,2]
[333685283,1722351056632,-282.22272373,0.00014246,2]
[333685284,1722351056685,-10.75349789,0.00014246,2]
[333685285,1722351056695,-126.05976569,0.00014246,2]
[333685292,1722352154166,-252.1,0.00010959,2]
[333685293,1722352154188,-210.09,0.00010959,2]
[333685294,1722352154209,-175.07,0.00010959,2]
[333685295,1722352154237,-850.60128804,0.00010959,2]
[333685296,1722352165101,-24.78871196,0.00010959,2]
[333685297,1722352165123,-282.6151196,0.00012358,2]
[333685298,1722352165145,-300.0,0.00012395,2]
[333685299,1722352165168,-7378.17095247,0.00012396,2]
[333685349,1722352238363,-16554.44130103,0.00012396,2]
[333685351,1722352238374,-200.0,0.00012986,2]
[333685352,1722352238384,-163.574825,0.00013424,2]
[333685353,1722352238394,-184.865992,0.00013424,2]
[333685354,1722352238404,-160.0,0.00013426,3]
[333685356,1722352238414,-2424.72056232,0.00013597,2]
[333685358,1722352238424,-160.0,0.00013637,4]
[333685360,1722352238434,-163.574825,0.00013648,2]
[333685362,1722352238445,-184.865992,0.00013648,2]
[333685364,1722352238460,-1812.02000001,0.0001366,2]
[333685366,1722352238470,-109705.753748,0.00013688,2]
[333685368,1722352238480,-1232.04,0.00013697,2]
[333685370,1722352238489,-1232.04,0.00013697,2]
[333685372,1722352238501,-1232.04,0.00013697,2]
[333685374,1722352238511,-1232.04,0.00013697,2]
[333685376,1722352238521,-500.0,0.00013698,2]
[333685378,1722352238532,-500.0,0.00013698,2]
[333685380,1722352238542,-417.92,0.00013698,2]
[333685383,1722352238553,-500.0,0.00013698,2]
[333685385,1722352238566,-500.34912662,0.00013698,2]
[333685387,1722352238576,-500.0,0.00013698,2]
[333685389,1722352238587,-500.0,0.00013698,2]
[333685391,1722352238597,-500.0,0.00013698,2]
[333685393,1722352238607,-423.71,0.00013698,2]
[333685395,1722352238617,-500.0,0.00013698,2]
[333685397,1722352238626,-500.0,0.00013698,2]
[333685399,1722352238637,-500.0,0.00013698,2]
[333685401,1722352238647,-638.3,0.00013698,2]
[333685403,1722352238658,-500.0,0.00013698,2]
[333685405,1722352238668,-484.94979005,0.00013698,2]
[333685407,1722352238678,-500.0,0.00013698,2]
[333685409,1722352238687,-501.79460738,0.00013698,2]
[333685411,1722352238697,-1746.89,0.00013698,2]
[333685413,1722352238707,-500.0,0.00013698,2]
[333685415,1722352238718,-500.0,0.00013698,2]
[333685416,1722352238729,-498.26237834,0.00013698,2]
[333685417,1722352238739,-500.0,0.00013698,2]
[333685418,1722352238750,-500.0,0.00013698,2]
[333685419,1722352238761,-500.0,0.00013698,2]
[333685420,1722352238771,-500.0,0.00013698,2]
[333685421,1722352238783,-500.0,0.00013698,2]
[333685422,1722352238792,-500.0,0.00013698,2]
[333685423,1722352238804,-500.0,0.00013698,2]
[333685424,1722352238815,-500.0,0.00013698,2]
[333685425,1722352238825,-500.0,0.00013698,2]
[333685426,1722352238834,-500.0,0.00013698,2]
[333685427,1722352238844,-550.21483176,0.00013698,2]
[333685428,1722352238855,-500.0,0.00013698,2]
[333685429,1722352238866,-500.0,0.00013698,2]
[333685430,1722352238875,-500.0,0.00013698,2]
[333685431,1722352238885,-500.0,0.00013698,2]
[333685432,1722352238895,-500.0,0.00013698,2]
[333685433,1722352238906,-508.84776779,0.00013698,2]
[333685434,1722352238916,-500.0,0.00013698,2]
[333685435,1722352238926,-500.0,0.00013698,2]
[333685436,1722352238937,-282.73,0.00013698,2]
[333685437,1722352238948,-500.0,0.00013698,2]
[333685438,1722352238957,-1337.6,0.00013698,2]
[333685439,1722352238967,-500.0,0.00013698,2]
[333685440,1722352238977,-500.0,0.00013698,2]
[333685441,1722352238986,-302.04969017,0.00013698,2]
[333685442,1722352238996,-500.0,0.00013698,2]
[333685443,1722352239006,-500.0,0.00013698,2]
[333685444,1722352239016,-500.0,0.00013698,2]
[333685445,1722352239025,-500.0,0.00013698,2]
[333685446,1722352239035,-500.0,0.00013698,2]
[333685447,1722352239045,-500.0,0.00013698,2]
[333685448,1722352239054,-500.0,0.00013698,2]
[333685449,1722352239068,-500.0,0.00013698,2]
[333685450,1722352239079,-500.0,0.00013698,2]
[333685451,1722352239088,-500.0,0.00013698,2]
[333685452,1722352239100,-500.0,0.00013698,2]
[333685453,1722352239109,-605.2,0.00013698,2]
[333685454,1722352239119,-500.0,0.00013698,2]
[333685455,1722352239129,-503.42198237,0.00013698,2]
[333685456,1722352239138,-500.0,0.00013698,2]
[333685457,1722352239148,-500.0,0.00013698,2]
[333685458,1722352239158,-404.56712374,0.00013698,2]
[333685459,1722352239168,-500.0,0.00013698,2]
[333685460,1722352239177,-488.75009655,0.00013698,2]
[333685461,1722352239187,-216.51,0.00013698,2]
[333685462,1722352239196,-500.0,0.00013698,2]
[333685463,1722352239207,-500.0,0.00013698,2]
[333685464,1722352239216,-245.24504845,0.00013698,2]
[333685465,1722352239226,-500.0,0.00013698,2]
[333685466,1722352239236,-500.0,0.00013698,2]
[333685467,1722352239249,-500.0,0.00013698,2]
[333685468,1722352239259,-500.0,0.00013698,2]
[333685469,1722352239269,-500.0,0.00013698,2]
[333685470,1722352239279,-500.0,0.00013698,2]
[333685471,1722352239290,-500.0,0.00013698,2]
[333685472,1722352239300,-500.0,0.00013698,2]
[333685473,1722352239310,-586.73,0.00013698,2]
[333685474,1722352239323,-500.0,0.00013698,2]
[333685475,1722352239337,-161.66849535,0.00013698,2]
[333685476,1722352239347,-503.55350925,0.00013698,2]
[333685477,1722352239357,-500.0,0.00013698,2]
[333685478,1722352239367,-555.82786213,0.00013698,2]
[333685479,1722352239376,-500.0,0.00013698,2]
[333685480,1722352239386,-500.0,0.00013698,2]
[333685481,1722352239396,-535.27528348,0.00013698,2]
[333685482,1722352239406,-506.05539996,0.00013698,2]
[333685483,1722352239416,-500.0,0.00013698,2]
[333685484,1722352239426,-500.0,0.00013698,2]
[333685485,1722352239435,-500.0,0.00013698,2]
[333685486,1722352239445,-500.0,0.00013698,2]
[333685487,1722352239454,-500.0,0.00013698,2]
[333685488,1722352239465,-500.0,0.00013698,2]
[333685489,1722352239474,-500.0,0.00013698,2]
[333685490,1722352239484,-500.0,0.00013698,2]
[333685491,1722352239494,-500.0,0.00013698,2]
[333685492,1722352239503,-500.0,0.00013698,2]
[333685493,1722352239513,-500.0,0.00013698,2]
[333685494,1722352239522,-500.0,0.00013698,2]
[333685495,1722352239531,-500.0,0.00013698,2]
[333685496,1722352239740,-500.0,0.00013698,2]
[333685497,1722352239750,-500.0,0.00013698,2]
[333685498,1722352239759,-500.0,0.00013698,2]
[333685499,1722352239768,-500.0,0.00013698,2]
[333685500,1722352239778,-504.19036486,0.00013698,2]
[333685501,1722352239787,-500.0,0.00013698,2]
[333685502,1722352239797,-500.0,0.00013698,2]